[Event "6th Heraklion Capablanca 2019"]
[Site "Heraklion"]
[Date "2019.04.29"]
[Round "1.2"]
[White "Yoo, Christopher Woojin"]
[Black "Anagnostopoulos, Konstantinos"]
[Result "1-0"]
[ECO "C13"]
[WhiteElo "2414"]
[BlackElo "2345"]
[Annotator "NA RC"]
[PlyCount "47"]
[EventDate "2019.04.29"]
[EventType "tourn"]
[EventCountry "GRE"]
[SourceTitle "playchess.com"]
[Source "ChessBase"]
[SourceQuality "1"]
[TimeControl "40/5400+30:1800+30"]

1. e4 {[%emt 0:00:00]} e6 {[%emt 0:01:20]} 2. d4 {[%emt 0:00:18]} d5 {[%emt 0:00:09]} 3. Nc3 {[%emt 0:00:07]} Nf6 {[%emt 0:00:15]} 4. Bg5 {[%emt 0:01:07]} dxe4 {[%emt 0:00:43]} 5. Nxe4 {[%emt 0:00:07]} Be7 {[%emt 0:00:13]} 6. Bxf6 {[%emt 0:00:05]} gxf6 {[%emt 0:00:04]} 7. Nf3 {[%emt 0:00:49]} f5 {[%emt 0:00:54]} 8. Nc3 {[%emt 0:00:37]} a6 {[%emt 0:00:12]} 9. Qe2 {[%emt 0:00:50]} b5 {[%emt 0:02:34]} 10. O-O-O {[%emt 0:02:40]} b4 {[%emt 0:01:33]} 11. d5 {[%emt 0:10:41]} bxc3 {[%emt 0:05:07]} 12. dxe6 {[%emt 0:00:11]} Bd6 {[%emt 0:03:17]} 13. exf7+ {[%emt 0:03:43]} Kxf7 {[%emt 0:12:52]} 14. Qc4+ {[%emt 0:19:06]} Be6 {[%emt 0:03:26]} 15. Qxc3 {[%emt 0:00:42]} Bf4+ {[%emt 0:15:07]} 16. Nd2 {[%emt 0:00:06]} Qf6 {[%emt 0:09:10]} 17. Qf3 {[%emt 0:03:45]} Qd4 {[%emt 0:00:59]} 18. g3 {[%emt 0:09:26]} Bh6 {[%emt 0:03:39]} 19. Bd3 {[%emt 0:08:31]} Nd7 {[%emt 0:14:53]} 20. Bxf5 {[%emt 0:03:22]} Rab8 {[%emt 0:03:10]} 21. c3 {[%emt 0:07:21]} Qb6 {[%emt 0:01:28]} 22. Bxe6+ {[%emt 0:01:47]} Kxe6 {[%emt 0:00:03]} 23. Rhe1+ {[%emt 0:03:28]} Ne5 {[%emt 0:01:16]} 24. Rxe5+ {[%emt 0:01:25] Kd5 [%emt 00:00:39]} 1-0

[Event "6th Heraklion Capablanca 2019"]
[Site "Heraklion"]
[Date "2019.04.29"]
[Round "1.3"]
[White "Zarubitski, Viachaslau"]
[Black "Szwed, Jacek"]
[Result "1/2-1/2"]
[ECO "C10"]
[WhiteElo "2416"]
[BlackElo "2387"]
[Annotator "NA RC"]
[PlyCount "61"]
[EventDate "2019.04.29"]
[EventType "tourn"]
[EventCountry "GRE"]
[SourceTitle "playchess.com"]
[Source "ChessBase"]
[SourceQuality "1"]
[TimeControl "40/5400+30:1800+30"]

1. e4 {[%emt 0:00:00]} e6 {[%emt 0:00:00]} 2. d4 {[%emt 0:00:00]} d5 {[%emt 0:00:00]} 3. Nc3 {[%emt 0:00:00]} Nf6 {[%emt 0:00:00]} 4. Bg5 {[%emt 0:00:00]} dxe4 {[%emt 0:00:00]} 5. Nxe4 {[%emt 0:00:01]} Nbd7 {[%emt 0:00:00]} 6. Nf3 {[%emt 0:00:08]} h6 {[%emt 0:00:00]} 7. Nxf6+ {[%emt 0:00:05]} Nxf6 {[%emt 0:00:05]} 8. Bh4 {[%emt 0:00:04]} c5 {[%emt 0:00:07]} 9. c3 {[%emt 0:00:03]} Be7 {[%emt 0:00:36]} 10. Bd3 {[%emt 0:19:56]} O-O {[%emt 0:16:41]} 11. Qe2 {[%emt 0:01:06]} cxd4 {[%emt 0:18:09]} 12. Nxd4 {[%emt 0:02:11]} Bd7 {[%emt 0:01:47]} 13. O-O {[%emt 0:01:28]} Qb6 $14 {[%emt 0:13:00]} 14. Rfe1 {[%emt 0:12:15]} Rfe8 {[%emt 0:05:34]} 15. a4 {[%emt 0:12:50]} a5 {[%emt 0:01:23]} 16. Nb5 {[%emt 0:02:05]} Rac8 {[%emt 0:10:20]} 17. Rad1 {[%emt 0:06:36]} Red8 {[%emt 0:10:41]} 18. Bxf6 {[%emt 0:12:01]} Bxf6 {[%emt 0:02:26]} 19. Nd6 {[%emt 0:00:22]} Rc6 {[%emt 0:03:44]} 20. Nc4 {[%emt 0:18:33]} Qc5 {[%emt 0:03:15]} 21. Ne5 {[%emt 0:01:49]} Rd6 {[%emt 0:06:50]} 22. Nxd7 {[%emt 0:01:39]} R6xd7 {[%emt 0:00:48]} 23. g3 {[%emt 0:01:03]} b6 {[%emt 0:01:18]} 24. Bb5 {[%emt 0:04:26]} Rd5 {[%emt 0:00:27]} 25. Qf3 {[%emt 0:01:57]} Rd2 {[%emt 0:03:21]} 26. Rxd2 {[%emt 0:00:59]} Rxd2 {[%emt 0:00:00]} 27. Re2 {[%emt 0:00:13]} Rd1+ {[%emt 0:00:49]} 28. Kg2 {[%emt 0:00:01]} Qd6 {[%emt 0:00:01]} 29. Qa8+ {[%emt 0:00:50]} Kh7 {[%emt 0:01:13]} 30. Qb7 {[%emt 0:00:30]} Qd5+ {[%emt 0:01:36]} 31. Qxd5 {[%emt 0:00:02]} 1/2-1/2

[Event "6th Heraklion Capablanca 2019"]
[Site "Heraklion"]
[Date "2019.04.30"]
[Round "2.1"]
[White "Karousos-Theodorakis, Nikolaos"]
[Black "Kelires, Andreas"]
[Result "1/2-1/2"]
[ECO "C25"]
[WhiteElo "2280"]
[BlackElo "2508"]
[Annotator "RC"]
[PlyCount "70"]
[EventDate "2019.04.29"]
[EventType "tourn"]
[EventCountry "GRE"]
[SourceTitle "playchess.com"]
[Source "ChessBase"]
[SourceQuality "1"]
[TimeControl "40/5400+30:1800+30"]

1. e4 {[%emt 0:00:00]} e5 {[%emt 0:00:00]} 2. Nc3 {[%emt 0:00:00]} Nc6 {[%emt 0:01:28]} 3. g3 {[%emt 0:00:48]} Bc5 {[%emt 0:03:42]} 4. Bg2 {[%emt 0:01:00]} d6 {[%emt 0:01:56]} 5. Nge2 {[%emt 0:04:07]} Nge7 {[%emt 0:08:48]} 6. Na4 {[%emt 0:07:00]} h5 {[%emt 0:06:41]} 7. h4 {[%emt 0:07:59]} a6 {[%emt 0:01:50]} 8. Nxc5 {[%emt 0:01:42]} dxc5 {[%emt 0:00:12]} 9. d3 {[%emt 0:01:27]} Qd6 {[%emt 0:00:42]} 10. Be3 {[%emt 0:03:20]} Be6 {[%emt 0:02:31]} 11. Qd2 {[%emt 0:08:29]} O-O-O {[%emt 0:04:30]} 12. b3 {[%emt 0:03:54]} f6 {[%emt 0:07:00]} 13. f4 {[%emt 0:08:55]} Nd4 {[%emt 0:29:27]} 14. fxe5 {[%emt 0:13:55]} fxe5 {[%emt 0:01:54]} 15. O-O {[%emt 0:03:49]} Ng8 {[%emt 0:05:53]} 16. Bg5 {[%emt 0:02:23]} Re8 {[%emt 0:05:23]} 17. Nxd4 {[%emt 0:04:03]} cxd4 {[%emt 0:00:02]} 18. Kh2 {[%emt 0:00:38]} Nh6 {[%emt 0:01:32]} 19. Bxh6 {[%emt 0:00:45]} Rxh6 {[%emt 0:02:52]} 20. Qg5 {[%emt 0:01:47]} Bg4 {[%emt 0:02:18]} 21. Bh3 {[%emt 0:05:02]} Bxh3 {[%emt 0:02:28]} 22. Kxh3 {[%emt 0:00:05]} Qd7+ {[%emt 0:01:14]} 23. Kg2 {[%emt 0:01:42]} Rc6 {[%emt 0:00:45]} 24. Rac1 {[%emt 0:00:44]} g6 {[%emt 0:01:05]} 25. Rf6 {[%emt 0:01:00]} Rxf6 {[%emt 0:00:04]} 26. Qxf6 {[%emt 0:00:04]} Re6 {[%emt 0:00:04]} 27. Qf8+ {[%emt 0:01:03]} Re8 {[%emt 0:01:45]} 28. Qf6 {[%emt 0:00:13]} Re6 {[%emt 0:00:04]} 29. Qf8+ {[%emt 0:00:04]} Qd8 {[%emt 0:00:39]} 30. Qxd8+ {[%emt 0:03:09]} Kxd8 {[%emt 0:00:05]} 31. Kf3 {[%emt 0:00:04]} Kd7 {[%emt 0:02:40]} 32. Ke2 {[%emt 0:00:30]} Rc6 {[%emt 0:00:20]} 33. Kd2 {[%emt 0:00:05]} Rf6 {[%emt 0:00:04]} 34. Ke2 {[%emt 0:00:05]} Rc6 {[%emt 0:00:07]} 35. Kd2 {[%emt 0:00:04]} Rf6 {[%emt 0:00:08]} 1/2-1/2

[Event "6th Heraklion Capablanca 2019"]
[Site "Heraklion"]
[Date "2019.04.30"]
[Round "2.2"]
[White "Vaishali R"]
[Black "Antic, Dejan"]
[Result "1/2-1/2"]
[ECO "B51"]
[WhiteElo "2353"]
[BlackElo "2471"]
[Annotator "RC"]
[PlyCount "40"]
[EventDate "2019.04.29"]
[EventType "tourn"]
[EventCountry "GRE"]
[SourceTitle "playchess.com"]
[Source "ChessBase"]
[SourceQuality "1"]
[TimeControl "40/5400+30:1800+30"]

1. e4 {[%emt 0:00:00]} c5 {[%emt 0:00:00]} 2. Nf3 {[%emt 0:00:00]} Nc6 {[%emt 0:00:00]} 3. Bb5 {[%emt 0:00:06]} d6 {[%emt 0:00:06]} 4. O-O {[%emt 0:01:18]} Bd7 {[%emt 0:00:16]} 5. Re1 {[%emt 0:08:13]} Nf6 {[%emt 0:00:37]} 6. h3 {[%emt 0:00:49]} e6 {[%emt 0:00:22]} 7. c3 {[%emt 0:00:29]} Ne5 {[%emt 0:00:21]} 8. Bxd7+ {[%emt 0:01:23]} Qxd7 {[%emt 0:05:39]} 9. d4 {[%emt 0:02:34]} cxd4 {[%emt 0:01:02]} 10. cxd4 {[%emt 0:00:17]} Nxf3+ {[%emt 0:00:15]} 11. Qxf3 {[%emt 0:00:03]} d5 {[%emt 0:00:22]} 12. e5 {[%emt 0:10:31]} Ng8 {[%emt 0:03:51]} 13. b3 {[%emt 0:02:05]} Rc8 {[%emt 0:02:21]} 14. Ba3 {[%emt 0:07:04]} Bxa3 {[%emt 0:01:43]} 15. Nxa3 {[%emt 0:00:03]} Ne7 {[%emt 0:00:22]} 16. Qd3 {[%emt 0:00:50]} a6 {[%emt 0:03:05]} 17. Rac1 {[%emt 0:01:34]} O-O {[%emt 0:00:34]} 18. Qd2 {[%emt 0:02:34]} Nf5 {[%emt 0:02:23]} 19. Nc2 {[%emt 0:01:46]} Qe7 {[%emt 0:02:11]} 20. Ne3 {[%emt 0:07:48]} Qg5 {[%emt 0:07:46]} 1/2-1/2

[Event "6th Heraklion Capablanca 2019"]
[Site "Heraklion"]
[Date "2019.04.30"]
[Round "2.3"]
[White "Szwed, Jacek"]
[Black "Harff, Marcel"]
[Result "1/2-1/2"]
[ECO "B32"]
[WhiteElo "2387"]
[BlackElo "2412"]
[Annotator "NA"]
[PlyCount "89"]
[EventDate "2019.04.29"]
[EventType "tourn"]
[EventCountry "GRE"]
[SourceTitle "playchess.com"]
[Source "ChessBase"]
[SourceQuality "1"]
[TimeControl "40/5400+30:1800+30"]

1. e4 {[%emt 0:00:00]} c5 {[%emt 0:00:00]} 2. Nf3 {[%emt 0:00:03]} Nc6 {[%emt 0:00:00]} 3. d4 {[%emt 0:00:43]} cxd4 {[%emt 0:00:00]} 4. Nxd4 {[%emt 0:00:03]} d5 {[%emt 0:00:20]} 5. Nxc6 {[%emt 0:01:38]} bxc6 {[%emt 0:00:08]} 6. exd5 {[%emt 0:00:09]} Qxd5 {[%emt 0:00:09]} 7. Nc3 {[%emt 0:00:09] B32: Sicilian: Löwenthal and Kalashnikov Variations} Qxd1+ {[%emt 0:00:08]} 8. Nxd1 {[%emt 0:00:07]} e5 {[%emt 0:00:07]} 9. Ne3 {[%emt 0:00:15]} Bd6 $146 {[%emt 0:01:27]} ({Predecessor:} 9... Nf6 10. Nc4 e4 11. Bd2 Bc5 12. b4 Be7 13. Na5 Bd7 14. c4 Ng4 {1-0 (27) Tomczak,J (2562)-Grandadam,N (2307) Katowice 2014}) 10. Nc4 {[%emt 0:04:33]} Bc7 {[%emt 0:00:06]} 11. Be3 {[%emt 0:09:14]} Nf6 {[%emt 0:00:23]} 12. Bc5 {[%emt 0:28:11]} Nd5 {[%emt 0:02:44]} 13. Nd6+ {[%emt 0:03:51]} Bxd6 $1 {[%emt 0:00:08]} 14. Bxd6 {[%emt 0:00:01]} f6 {[%emt 0:03:57]} 15. O-O-O {[%emt 0:05:41]} Bg4 {[%emt 0:03:58]} 16. Rd2 {[%emt 0:12:36]} Kd7 {[%emt 0:01:31]} 17. Bc5 {[%emt 0:00:34]} Kc7 {[%emt 0:00:11]} 18. Ba6 {[%emt 0:09:23]} Rhd8 {[%emt 0:00:47]} 19. f3 {[%emt 0:04:15]} Bc8 {[%emt 0:01:13]} 20. Bxc8 {[%emt 0:02:23]} Rdxc8 {[%emt 0:02:11]} 21. Rhd1 {[%emt 0:00:37]} Kb7 {[%emt 0:00:07]} 22. Rd3 {[%emt 0:02:31]} Rc7 {[%emt 0:00:55]} 23. g3 {[%emt 0:01:44]} Re8 {[%emt 0:00:39]} 24. c4 {[%emt 0:04:57]} Nb6 {[%emt 0:00:08]} 25. b3 {[%emt 0:00:18]} Rcc8 {[%emt 0:06:10]} 26. Rd6 $14 {[%emt 0:02:38]} h5 {[%emt 0:01:38]} 27. Kc2 {[%emt 0:01:47]} Rc7 {[%emt 0:02:14]} 28. Rd8 {[%emt 0:02:39]} Rc8 {[%emt 0:03:05]} 29. Bxb6 {[%emt 0:01:15]} Kxb6 {[%emt 0:00:05]} 30. Rxc8 {[%emt 0:00:27]} Rxc8 {[%emt 0:00:04]} 31. Rd7 {[%emt 0:00:02]} Rc7 {[%emt 0:01:45]} 32. c5+ {[%emt 0:02:10]} Kb7 {[%emt 0:00:14]} 33. Rxc7+ {[%emt 0:00:02]} Kxc7 {[%emt 0:00:07]} 34. g4 {[%emt 0:00:00]} hxg4 {[%emt 0:00:19]} 35. fxg4 {[%emt 0:00:01]} g5 {[%emt 0:01:22]} 36. Kd3 {[%emt 0:01:17]} a5 {[%emt 0:00:32]} 37. a4 {[%emt 0:01:41]} Kd7 {[%emt 0:00:29]} 38. Kc3 {[%emt 0:00:31]} Ke6 {[%emt 0:00:34]} 39. Kc4 {[%emt 0:00:14]} Kd7 {[%emt 0:02:15]} 40. Kd3 {[%emt 0:00:00]} Ke6 {[%emt 0:00:00]} 41. Ke4 {[%emt 0:14:02]} Kd7 {[%emt 0:01:24]} 42. Kd3 {[%emt 0:01:10]} Ke6 {[%emt 0:00:02]} 43. Ke4 {[%emt 0:01:14]} Kd7 {[%emt 0:00:08]} 44. Kd3 {[%emt 0:00:17]} Ke6 {[%emt 0:00:09]} 45. Ke4 {[%emt 0:00:09]} 1/2-1/2

[Event "6th Heraklion Capablanca 2019"]
[Site "Heraklion"]
[Date "2019.04.30"]
[Round "2.4"]
[White "Anagnostopoulos, Konstantinos"]
[Black "Zarubitski, Viachaslau"]
[Result "0-1"]
[ECO "B15"]
[WhiteElo "2345"]
[BlackElo "2416"]
[Annotator "NA"]
[PlyCount "72"]
[EventDate "2019.04.29"]
[EventType "tourn"]
[EventCountry "GRE"]
[SourceTitle "playchess.com"]
[Source "ChessBase"]
[SourceQuality "1"]
[TimeControl "40/5400+30:1800+30"]

1. e4 {[%emt 0:00:00]} c6 {[%emt 0:02:46]} 2. d4 {[%emt 0:03:12]} d5 {[%emt 0:00:26]} 3. f3 {[%emt 0:02:20]} g6 {[%emt 0:03:22]} 4. Nc3 {[%emt 0:03:35]} Bg7 {[%emt 0:00:35]} 5. Be3 {[%emt 0:00:43]} dxe4 {[%emt 0:09:53]} 6. fxe4 {[%emt 0:04:06]} Nf6 {[%emt 0:00:23]} 7. Be2 {[%emt 0:01:07]} Qb6 {[%emt 0:15:15]} 8. e5 {[%emt 0:08:54]} Nd5 $11 {[%emt 0:00:50]} 9. Nxd5 {[%emt 0:00:10]} cxd5 {[%emt 0:00:06]} 10. Qc1 {[%emt 0:15:14]} Bd7 {[%emt 0:03:42]} 11. Bf3 {[%emt 0:05:46]} Nc6 {[%emt 0:05:36]} 12. Ne2 {[%emt 0:01:28]} e6 {[%emt 0:02:04]} 13. O-O {[%emt 0:02:02]} Na5 {[%emt 0:01:43]} 14. b3 {[%emt 0:03:07]} Rc8 {[%emt 0:00:54]} 15. c4 {[%emt 0:05:46]} dxc4 {[%emt 0:06:01]} 16. d5 {[%emt 0:03:37]} Qb4 {[%emt 0:03:30]} 17. a3 {[%emt 0:05:19]} Qe7 {[%emt 0:03:52]} 18. Qc3 {[%emt 0:05:23]} Nxb3 {[%emt 0:00:17]} 19. d6 {[%emt 0:01:30]} Qd8 {[%emt 0:01:45]} 20. Rad1 {[%emt 0:02:42]} Qa5 {[%emt 0:09:10]} 21. Bxb7 {[%emt 0:01:23]} Rb8 {[%emt 0:01:21]} 22. Qxa5 {[%emt 0:06:33]} Nxa5 {[%emt 0:00:02]} 23. Bf3 {[%emt 0:00:32]} Bxe5 {[%emt 0:01:25]} 24. Bxa7 {[%emt 0:00:17]} Rb2 {[%emt 0:03:41]} 25. Bc5 {[%emt 0:03:07]} O-O {[%emt 0:07:45]} 26. Bb4 {[%emt 0:00:09]} Nc6 {[%emt 0:00:40]} 27. Bc3 {[%emt 0:00:43]} Rxe2 {[%emt 0:02:28]} 28. Bxe2 {[%emt 0:00:05]} Bxc3 {[%emt 0:00:01]} 29. Bxc4 {[%emt 0:00:07]} Ne5 {[%emt 0:01:32]} 30. Be2 {[%emt 0:00:35]} Ra8 {[%emt 0:00:59]} 31. Rb1 {[%emt 0:00:50]} Rxa3 {[%emt 0:01:00]} 32. h3 {[%emt 0:00:43]} Kg7 {[%emt 0:02:23]} 33. Kh2 {[%emt 0:00:23]} Ra2 {[%emt 0:02:15]} 34. Bb5 {[%emt 0:00:05]} Rd2 {[%emt 0:00:47]} 35. Rfc1 {[%emt 0:01:04]} Bb2 {[%emt 0:00:23]} 36. Rc5 {[%emt 0:00:14]} Ba3 {[%emt 0:00:19]} 0-1

[Event "6th Heraklion Capablanca 2019"]
[Site "Heraklion"]
[Date "2019.05.01"]
[Round "3.2"]
[White "Zarubitski, Viachaslau"]
[Black "Demuth, Adrien"]
[Result "1/2-1/2"]
[ECO "B22"]
[WhiteElo "2416"]
[BlackElo "2512"]
[Annotator "ChessBase"]
[PlyCount "32"]
[EventDate "2019.04.29"]
[EventType "tourn"]
[EventCountry "GRE"]
[SourceTitle "playchess.com"]
[Source "ChessBase"]
[SourceQuality "1"]
[TimeControl "40/5400+30:1800+30"]

1. e4 {[%emt 0:00:00]} c5 {[%emt 0:00:11]} 2. Nf3 {[%emt 0:00:00]} Nc6 {[%emt 0:00:05]} 3. c3 {[%emt 0:00:00]} d5 {[%emt 0:01:47]} 4. exd5 {[%emt 0:00:00]} Qxd5 {[%emt 0:00:03]} 5. d4 {[%emt 0:00:00]} Nf6 {[%emt 0:00:09]} 6. dxc5 {[%emt 0:00:03]} Qxd1+ {[%emt 0:06:02]} 7. Kxd1 {[%emt 0:00:01]} Bf5 {[%emt 0:09:18]} 8. Be3 {[%emt 0:03:23]} e6 {[%emt 0:03:03]} 9. Nd4 {[%emt 0:20:48]} O-O-O {[%emt 0:24:48]} 10. Nd2 {[%emt 0:00:32]} Nd5 {[%emt 0:01:51]} 11. Nxf5 {[%emt 0:45:21]} exf5 {[%emt 0:00:13]} 12. Kc2 {[%emt 0:03:37]} Nxe3+ {[%emt 0:08:22]} 13. fxe3 {[%emt 0:00:02]} Bxc5 {[%emt 0:00:05]} 14. Bd3 {[%emt 0:06:16]} g6 {[%emt 0:07:13]} 15. e4 {[%emt 0:00:02]} Ne5 {[%emt 0:06:41]} 16. Be2 {[%emt 0:00:42]} fxe4 {[%emt 0:02:25]} 1/2-1/2

[Event "6th Heraklion Capablanca 2019"]
[Site "Heraklion"]
[Date "2019.05.01"]
[Round "3.3"]
[White "Harff, Marcel"]
[Black "Anagnostopoulos, Konstantinos"]
[Result "1-0"]
[ECO "A12"]
[WhiteElo "2412"]
[BlackElo "2345"]
[Annotator "NA"]
[PlyCount "63"]
[EventDate "2019.04.29"]
[EventType "tourn"]
[EventCountry "GRE"]
[SourceTitle "playchess.com"]
[Source "ChessBase"]
[SourceQuality "1"]
[TimeControl "40/5400+30:1800+30"]

1. c4 {[%emt 0:00:00]} Nf6 {[%emt 0:00:00]} 2. Nf3 {[%emt 0:00:00]} c6 {[%emt 0:00:00]} 3. b3 {[%emt 0:00:00]} d5 {[%emt 0:03:57]} 4. Bb2 {[%emt 0:00:08]} Bf5 {[%emt 0:02:14]} 5. d3 {[%emt 0:02:05]} e6 {[%emt 0:00:15]} 6. Nbd2 {[%emt 0:00:34]} h6 {[%emt 0:00:22]} 7. g3 {[%emt 0:00:06]} Bc5 {[%emt 0:06:07]} 8. Bg2 {[%emt 0:01:11]} O-O {[%emt 0:00:16]} 9. O-O {[%emt 0:00:06]} Nbd7 {[%emt 0:00:27]} 10. Qe1 {[%emt 0:00:17]} Bg4 {[%emt 0:11:37]} 11. h3 {[%emt 0:00:48]} Bxf3 {[%emt 0:03:42]} 12. Nxf3 {[%emt 0:00:10]} a5 {[%emt 0:03:05]} 13. e4 {[%emt 0:13:28]} dxe4 {[%emt 0:08:49]} 14. dxe4 {[%emt 0:00:08]} Qb6 {[%emt 0:01:42]} 15. Rb1 {[%emt 0:05:25]} Rfd8 {[%emt 0:07:12]} 16. Qe2 {[%emt 0:02:06]} Nf8 {[%emt 0:03:10]} 17. Bxf6 {[%emt 0:13:45]} gxf6 {[%emt 0:00:04]} 18. Nh2 {[%emt 0:00:07]} Ng6 {[%emt 0:12:15]} 19. Kh1 {[%emt 0:03:49]} Bb4 {[%emt 0:08:41]} 20. f4 {[%emt 0:01:01]} Rd2 {[%emt 0:00:34]} 21. Qg4 {[%emt 0:00:56]} Qe3 {[%emt 0:10:10]} 22. f5 {[%emt 0:00:21]} h5 {[%emt 0:00:16]} 23. Qf3 {[%emt 0:00:01]} Qxf3 {[%emt 0:02:23]} 24. Nxf3 {[%emt 0:00:02]} exf5 {[%emt 0:00:51]} 25. Nxd2 {[%emt 0:00:38]} Bxd2 {[%emt 0:00:06]} 26. Rbd1 {[%emt 0:00:07]} Bc3 {[%emt 0:00:26]} 27. Rd3 {[%emt 0:01:33]} Bb4 {[%emt 0:04:14]} 28. Rd7 {[%emt 0:00:12]} Ra7 {[%emt 0:03:23]} 29. Rxf5 {[%emt 0:01:26]} Ne5 {[%emt 0:01:18]} 30. Rd8+ {[%emt 0:00:12]} Kg7 {[%emt 0:00:04]} 31. Rxh5 {[%emt 0:00:12]} a4 {[%emt 0:00:29]} 32. Rhh8 {[%emt 0:00:10]} 1-0

[Event "6th Heraklion Capablanca 2019"]
[Site "Heraklion"]
[Date "2019.05.01"]
[Round "3.4"]
[White "Antic, Dejan"]
[Black "Szwed, Jacek"]
[Result "1/2-1/2"]
[ECO "D25"]
[WhiteElo "2471"]
[BlackElo "2387"]
[Annotator "ChessBase"]
[PlyCount "92"]
[EventDate "2019.04.29"]
[EventType "tourn"]
[EventCountry "GRE"]
[SourceTitle "playchess.com"]
[Source "ChessBase"]
[SourceQuality "1"]
[TimeControl "40/5400+30:1800+30"]

1. d4 {[%emt 0:03:14]} d5 {[%emt 0:00:00]} 2. Nf3 {[%emt 0:00:32]} Nf6 {[%emt 0:00:00]} 3. c4 {[%emt 0:00:31]} dxc4 {[%emt 0:00:00]} 4. e3 {[%emt 0:00:33]} b5 {[%emt 0:00:31]} 5. a4 {[%emt 0:01:53]} b4 {[%emt 0:00:15]} 6. Bxc4 {[%emt 0:00:26]} e6 {[%emt 0:00:13]} 7. O-O {[%emt 0:00:46]} Be7 {[%emt 0:00:19]} 8. b3 {[%emt 0:00:31]} O-O {[%emt 0:00:23]} 9. Bb2 {[%emt 0:00:25]} Bb7 {[%emt 0:00:19]} 10. Nbd2 {[%emt 0:00:39]} c5 {[%emt 0:00:57]} 11. Rc1 {[%emt 0:02:05]} Nbd7 {[%emt 0:13:34]} 12. Be2 {[%emt 0:08:19]} cxd4 {[%emt 0:11:04]} 13. Nxd4 {[%emt 0:06:42]} Nc5 {[%emt 0:00:32]} 14. Nc4 {[%emt 0:01:38]} Rc8 {[%emt 0:21:48]} 15. Bf3 {[%emt 0:04:16]} Bxf3 {[%emt 0:02:24]} 16. Qxf3 {[%emt 0:05:35]} Nd3 {[%emt 0:09:29]} 17. Rcd1 {[%emt 0:06:52]} Nxb2 {[%emt 0:02:28]} 18. Nxb2 {[%emt 0:00:32]} Qd5 {[%emt 0:03:33]} 19. Nc4 {[%emt 0:04:01]} Qxf3 {[%emt 0:03:26]} 20. gxf3 {[%emt 0:07:40]} Nd5 {[%emt 0:00:04]} 21. Nf5 {[%emt 0:10:38]} Bf6 {[%emt 0:02:47]} 22. Nfd6 {[%emt 0:00:43]} Rc6 {[%emt 0:02:08]} 23. Ne4 {[%emt 0:04:48]} Be7 {[%emt 0:02:07]} 24. Rd3 {[%emt 0:04:40]} Rfc8 {[%emt 0:02:10]} 25. f4 {[%emt 0:05:47]} g6 {[%emt 0:10:21]} 26. Rfd1 {[%emt 0:03:37]} Kg7 {[%emt 0:03:18]} 27. Kg2 {[%emt 0:00:39]} h6 {[%emt 0:04:41]} 28. R1d2 {[%emt 0:02:48]} f5 {[%emt 0:02:21]} 29. Ng3 {[%emt 0:00:13]} Bf6 {[%emt 0:01:00]} 30. Ne2 {[%emt 0:00:22]} Kf7 {[%emt 0:01:47]} 31. Nd4 {[%emt 0:00:28]} Bxd4 {[%emt 0:00:49]} 32. Rxd4 {[%emt 0:00:10]} Kf6 {[%emt 0:00:08]} 33. h4 {[%emt 0:01:04]} g5 {[%emt 0:00:53]} 34. hxg5+ {[%emt 0:03:34]} hxg5 {[%emt 0:00:00]} 35. fxg5+ {[%emt 0:00:48]} Kxg5 {[%emt 0:00:01]} 36. f4+ {[%emt 0:01:23]} Kf6 {[%emt 0:00:01]} 37. Kf3 {[%emt 0:00:01]} Rh8 {[%emt 0:01:31]} 38. Rg2 {[%emt 0:00:55]} Rh3+ {[%emt 0:00:30]} 39. Rg3 {[%emt 0:00:55]} Rh2 {[%emt 0:01:01]} 40. Rd1 {[%emt 0:00:00]} Rc7 {[%emt 0:00:00]} 41. Rdg1 {[%emt 0:04:46]} Rh6 {[%emt 0:09:15]} 42. Rg8 {[%emt 0:01:44]} Rh3+ {[%emt 0:14:50]} 43. Kf2 {[%emt 0:00:52]} Rh2+ {[%emt 0:00:13]} 44. Kf3 {[%emt 0:00:23]} Rh3+ {[%emt 0:00:03]} 45. Kf2 {[%emt 0:00:04]} Rh2+ {[%emt 0:00:11]} 46. Kf3 {[%emt 0:00:04]} Rh3+ {[%emt 0:00:49] Ke4 [%emt 00:00:08] Ke5+} 1/2-1/2

[Event "6th Heraklion Capablanca 2019"]
[Site "Heraklion"]
[Date "2019.05.02"]
[Round "4.1"]
[White "Karousos-Theodorakis, Nikolaos"]
[Black "Vaishali R"]
[Result "1/2-1/2"]
[ECO "B13"]
[WhiteElo "2280"]
[BlackElo "2353"]
[Annotator "NA"]
[PlyCount "65"]
[EventDate "2019.04.29"]
[EventType "tourn"]
[EventCountry "GRE"]
[SourceTitle "playchess.com"]
[Source "ChessBase"]
[SourceQuality "1"]
[TimeControl "40/5400+30:1800+30"]

1. e4 {[%emt 0:00:00]} c6 {[%emt 0:00:00]} 2. d4 {[%emt 0:00:19]} d5 {[%emt 0:00:00]} 3. exd5 {[%emt 0:00:12]} cxd5 {[%emt 0:00:03]} 4. Bd3 {[%emt 0:00:13]} Nc6 {[%emt 0:00:07]} 5. c3 {[%emt 0:01:00]} Qc7 {[%emt 0:00:05]} 6. Na3 {[%emt 0:01:40]} a6 {[%emt 0:00:14]} 7. Nc2 {[%emt 0:00:07]} Nf6 {[%emt 0:00:17]} 8. h3 {[%emt 0:00:28]} e6 {[%emt 0:01:09]} 9. Nf3 {[%emt 0:03:23]} b5 {[%emt 0:00:51]} 10. O-O {[%emt 0:01:25]} Bb7 {[%emt 0:00:05]} 11. Qe2 {[%emt 0:08:39]} Be7 {[%emt 0:05:25]} 12. a4 {[%emt 0:01:57]} bxa4 {[%emt 0:00:57]} 13. Rxa4 {[%emt 0:01:30]} a5 {[%emt 0:01:13]} 14. Ne5 {[%emt 0:05:20]} O-O {[%emt 0:06:09]} 15. Bf4 {[%emt 0:04:57]} Nxe5 {[%emt 0:04:00]} 16. dxe5 {[%emt 0:10:22]} Ne4 {[%emt 0:06:23]} 17. Re1 {[%emt 0:04:09]} Nc5 {[%emt 0:08:09]} 18. Raa1 {[%emt 0:07:55]} Nxd3 {[%emt 0:01:14]} 19. Qxd3 {[%emt 0:00:06]} Ba6 {[%emt 0:03:14]} 20. Qg3 {[%emt 0:00:28]} Rfb8 {[%emt 0:01:31]} 21. Rab1 {[%emt 0:03:32]} Bf8 {[%emt 0:20:45]} 22. Nd4 {[%emt 0:04:09]} Qc4 {[%emt 0:16:20]} 23. b3 {[%emt 0:03:01]} Qd3 {[%emt 0:00:32]} 24. Ra1 {[%emt 0:02:20]} Qxg3 {[%emt 0:01:14]} 25. Bxg3 {[%emt 0:00:34]} Bd3 {[%emt 0:00:38]} 26. Red1 {[%emt 0:07:04]} Bg6 {[%emt 0:00:24]} 27. Ra2 {[%emt 0:06:25]} Bc5 {[%emt 0:07:23]} 28. Rda1 {[%emt 0:02:07]} Bxd4 {[%emt 0:01:21]} 29. cxd4 {[%emt 0:00:05]} Rxb3 {[%emt 0:00:04]} 30. Rxa5 {[%emt 0:00:06]} Rxa5 {[%emt 0:00:04]} 31. Rxa5 {[%emt 0:00:05]} h5 {[%emt 0:00:05]} 32. Bf4 {[%emt 0:00:53]} Be4 {[%emt 0:01:25]} 33. Ra7 {[%emt 0:01:11]} 1/2-1/2